Cogmind - Beta 13 @@@ ROGUE MODE // 2024.04.16 @ 21:25:38 Player: maeve Result: Destroyed by G-73 Enforcer with Phase Gun Performance ------------- Evolutions (7) 3500 Regions Visited (20) 4000 Robots Destroyed (206) 1030 Value Destroyed (9230) 9230 Prototype IDs (16) 320 Alien Tech Used (0) 0 Bonus (2744) 2744 TOTAL SCORE: 20824 Bonus ------- High Alert Combat Kills 295 Follower Combat Kills 990 Entered Garrisons 200 Entered DSFs 500 Acquired ECA 300 Scanned by Researcher 500 Friendly Fire -41 Cogmind --------- Core Integrity 0/1300 Matter 284/300 Energy 56/100 System Corruption 22% Temperature Cool (9) Movement Core (50) Location -3/Garrison Parts ------- > --- POWER (2) -------- (None) > --- PROPULSION (7) --- (None) > --- UTILITY (10) ----- Improved Targeting Computer Improved Targeting Computer > --- WEAPON (2) ------- (None) > --- INVENTORY (5) ---- Improved Gyrokinetic Inverter Improved Gyrokinetic Inverter Huge Storage Unit Cooled Plasma Rifle Peak State ------------ > --- POWER ------------ Reinforced Fission Core Antimatter Reactor > --- PROPULSION ------- Medium Treads Armored Medium Treads Advanced Medium Treads Advanced Medium Treads Improved Heavy Treads > --- UTILITY ---------- Advanced Power Amplifier Advanced Coolant Injector Huge Storage Unit Quantum Capacitor Transmission Jammer Experimental ECM Suite Advanced Shield Generator Makeshift System Restoration Module > --- WEAPON ----------- Heavy Phase Cannon Hypervelocity Gauss Cannon > --- INVENTORY -------- Fusion Compressor Antimatter Reactor Antimatter Reactor Medium Treads Medium Treads Armored Medium Treads Biometal Medium Treads Advanced Coolant Injector Huge Storage Unit High-capacity Battery Matter Compressor Stasis Canceller Transmission Jammer Advanced Powered Armor Advanced Shield Generator Point Defense Array Recalibrator Wave Gun Variable Charge Gun Railgun Hypervelocity Gauss Cannon Heavy Gauss Cannon Improved Proton Missile Launcher Molecular Deconstructor [Rating: 128] Favorites ----------- Power Antimatter Reactor Engine Angular Momentum Engine Power Core Reinforced Fission Core Reactor Antimatter Reactor Propulsion Improved Medium Treads Treads Improved Medium Treads Leg Aluminum Leg Wheel Armored Wheel Hover Unit Improved Antigrav System Flight Unit Diametric Drive Utility Huge Storage Unit Device Transmission Jammer Storage Huge Storage Unit Processor Improved Targeting Computer Hackware System Mapper Protection Hardened Heavy Armor Plating Weapon Advanced Beam Cannon Energy Gun Variable Charge Gun Energy Cannon Advanced Beam Cannon Ballistic Gun Heavy Battle Rifle Ballistic Cannon Advanced Assault Cannon Launcher Improved Proton Missile Launcher Special Weapon Molecular Deconstructor Impact Weapon Heavy Hammer Special Melee Weapon Dirty Datajack Build | -11 -10 -9 -9 -8 -7 -7 -7 -7 -7 -6 -6 -5 -5 -5 -4 -4 -4 -3 -3 -3 ------- Run | Yrd Mat Mat Sto Mat Fac Was Fac Low Low Fac DSF Fac Was Fac Fac Upp Upp Res Tes Gar Slots Evolved 14 | . . 2 . 2 2 . . . . 2 . 2 . . 2 . . 2 . . Power 1 | . . . . . . . . . . . . 1 . . . . . . . . Propulsion 5 | . . 2 . 1 . . . . . . . . . . 1 . . 1 . . Utility 8 | . . . . 1 2 . . . . 2 . 1 . . 1 . . 1 . . Weapon . | . . . . . . . . . . . . . . . . . . . . . Parts Attached 244 | 5 12 8 19 7 24 2 18 5 7 3 11 4 5 12 40 11 8 31 8 4 Power 21 | 1 2 . 2 . 1 1 1 . . 1 1 1 . 1 3 2 . 2 2 . Engine 10 | 1 2 . 2 . . . 1 . . 1 1 1 . . 1 . . . . . Core 4 | . . . . . 1 . . . . . . . . 1 1 1 . . . . Reactor 7 | . . . . . . 1 . . . . . . . . 1 1 . 2 2 . Propulsion 60 | 2 3 3 7 6 7 . 2 . . . 2 1 1 4 7 . 3 9 2 1 Treads 41 | . 3 3 7 1 6 . 2 . . . 2 1 1 4 7 . 3 1 . . Leg 2 | 2 . . . . . . . . . . . . . . . . . . . . Wheel 6 | . . . . 5 1 . . . . . . . . . . . . . . . Hover 8 | . . . . . . . . . . . . . . . . . . 5 2 1 Flight 3 | . . . . . . . . . . . . . . . . . . 3 . . Utility 102 | 1 3 2 3 1 13 1 12 . . 2 3 . 3 5 22 7 3 16 3 2 Device 72 | . 1 2 3 . 10 1 8 . . 2 1 . 1 4 18 6 3 8 2 2 Storage 13 | 1 2 . . . 1 . 3 . . . . . 1 1 4 . . . . . Processor 4 | . . . . . . . . . . . . . . . . . . 4 . . Hackware 1 | . . . . . . . . . . . . . . . . . . . 1 . Protection 12 | . . . . 1 2 . 1 . . . 2 . 1 . . 1 . 4 . . Artifact . | . . . . . . . . . . . . . . . . . . . . . Weapon 61 | 1 4 3 7 . 3 . 3 5 7 . 5 2 1 2 8 2 2 4 1 1 Energy Gun 13 | 1 1 1 1 . 2 . . . . . . . . . . 1 1 3 1 1 Energy Cannon 18 | . . 2 5 . 1 . 1 2 1 . 1 1 . 2 2 . . . . . Ballistic Gun 1 | . . . . . . . . . . . . 1 . . . . . . . . Ballistic Cannon 14 | . 1 . 1 . . . 1 1 3 . 1 . . . 5 . . 1 . . Launcher 7 | . . . . . . . 1 . 2 . 3 . . . 1 . . . . . Special Weapon 5 | . . . . . . . . 2 1 . . . 1 . . . 1 . . . Impact Weapon 2 | . 2 . . . . . . . . . . . . . . . . . . . Slashing Weapon . | . . . . . . . . . . . . . . . . . . . . . Piercing Weapon . | . . . . . . . . . . . . . . . . . . . . . Special Melee Weapon 1 | . . . . . . . . . . . . . . . . 1 . . . . Unidentified Prototypes 11 | . . 1 1 . 1 . . 1 . . . . . . 3 . . 1 3 . Parts Lost 76 | . 1 . 2 . 1 . 2 . . . 5 . . 5 9 3 6 33 4 5 Power 8 | . 1 . . . . . . . . . 1 . . . . 1 . 4 . 1 Propulsion 25 | . . . 1 . 1 . . . . . 2 . . . 4 . 3 12 2 . Utility 33 | . . . . . . . 1 . . . 2 . . 5 3 1 2 13 2 4 Weapon 10 | . . . 1 . . . 1 . . . . . . . 2 1 1 4 . . Highest Loss Streak 16 | . 1 . 1 . 1 . 1 . . . 5 . . 4 3 3 6 16 4 5 To Critical Strikes . | . . . . . . . . . . . . . . . . . . . . . Average Slot Usage (%) 86 | . 96 99 98 89 91 92 92 90 91 92 93 87 92 88 85 74 68 64 34 39 Engine 5 | . 13 11 11 9 6 . 5 7 7 6 6 5 11 9 2 . . . . . Core 1 | . . . . . . 3 . . . . . . . 1 5 5 5 2 . . Reactor 1 | . . . . . . 3 1 . . . . . . . 2 5 5 4 2 3 Treads 27 | . 27 44 43 28 14 38 38 38 38 33 31 27 28 23 26 21 20 10 . . Wheel 3 | . . . . 15 23 . . . . . . . . . . . . . . . Device 17 | . 2 11 10 2 15 15 14 15 15 25 26 23 23 25 30 23 17 15 6 12 Storage 8 | . 14 11 11 9 7 7 7 7 7 6 6 5 10 9 8 10 10 8 . . Protection 5 | . 9 . . 7 7 7 7 7 7 6 7 11 11 9 . 3 5 5 . . Energy Gun 2 | . 21 . . . 1 . . . . . . . . . . 3 4 4 2 . Energy Cannon 5 | . . 9 15 18 12 15 9 5 6 6 6 5 . 1 4 1 . . . . Ballistic Cannon 2 | . 2 11 4 . . . 4 5 6 6 3 . . . 4 . . 1 . . Naked Turns . | . . . . . . . . . . . . . . . . . . . . . Heaviest Build 159 | 10 32 40 42 51 62 73 128 126 126 135 135 139 147 152 159 159 152 156 15 22 Greatest Support 206 | 20 40 83 83 100 148 148 148 146 146 146 146 144 163 163 206 206 206 164 23 24 Greatest Overweight (x) 5 | . 3 . . 1 1 . 1 . . . 1 1 1 . 1 . . 5 . . Average Overweight (x) . | . . . . . . . . . . . . . . . . . . . . . Largest Inventory Capacity 25 | 8 15 15 15 15 15 15 25 25 25 25 25 25 25 25 25 25 25 25 5 5 Average Capacity 21 | 7 12 15 15 15 15 15 22 25 25 25 25 25 25 25 25 25 25 24 5 5 Most Carried 25 | 5 15 15 15 15 15 15 24 24 25 25 25 25 25 25 25 25 25 25 5 4 Average Carried 19 | 3 9 14 14 14 14 15 19 21 23 24 24 24 24 24 24 24 23 19 4 2 Final Capacity 25 | 8 15 15 15 15 15 15 25 25 25 25 25 25 25 25 25 25 25 5 5 5 Final Carried 25 | 5 15 14 15 15 15 15 21 22 25 25 25 24 25 23 23 25 18 5 5 4 Class Distribution -------------------- 75% | Mutant 21% | Scavenger-Mutant Dominant Class ---------------- Mutant | -10/Materials Mutant | -9/Materials Mutant | -9/Storage Mutant | -8/Materials Mutant | -7/Factory Mutant | -7/Waste Mutant | -7/Factory Mutant | -7/Lower Caves Mutant | -7/Lower Caves Mutant | -6/Factory Mutant | -6/DSF Mutant | -5/Factory Mutant | -5/Waste Mutant | -5/Factory Scavenger-Mutant | -4/Factory Scavenger-Mutant | -4/Upper Caves Mutant | -4/Upper Caves Mutant | -3/Research Mutant | -3/Testing Hacker-Mutant | -3/Garrison Resources | -11 -10 -9 -9 -8 -7 -7 -7 -7 -7 -6 -6 -5 -5 -5 -4 -4 -4 -3 -3 -3 ----------- Run | Yrd Mat Mat Sto Mat Fac Was Fac Low Low Fac DSF Fac Was Fac Fac Upp Upp Res Tes Gar Matter Collected 4467 | 180 240 202 311 90 234 52 446 158 284 . 256 . 461 241 573 105 86 385 94 69 Remotely . | . . . . . . . . . . . . . . . . . . . . . Salvage Created 10075 | . 329 326 1474 330 1281 . 765 95 436 . 559 . 992 476 1525 739 211 443 94 . Parts 466 | . 25 12 91 14 65 . 35 4 26 . 28 . . 20 91 14 15 23 3 . Haulers Intercepted 13 | . 1 1 4 2 1 . 2 . . . . . . 1 1 . . . . . Recyclers Shooed 1 | . . . . . . . . . . . . . . . 1 . . . . . Parts Field Recycled 23 | . . 23 . . . . . . . . . . . . . . . . . . Retrieved Matter 193 | . . 193 . . . . . . . . . . . . . . . . . . Parts Self-Destructed 56 | . . . . . . . . 4 23 . . . . . . 14 15 . . . Prevented 2 | . . . . . . . . . 2 . . . . . . . . . . . Kills | -11 -10 -9 -9 -8 -7 -7 -7 -7 -7 -6 -6 -5 -5 -5 -4 -4 -4 -3 -3 -3 ------- Run | Yrd Mat Mat Sto Mat Fac Was Fac Low Low Fac DSF Fac Was Fac Fac Upp Upp Res Tes Gar Combat Hostiles Destroyed 167 | . 9 4 28 2 24 . 14 3 10 . 11 . 5 9 24 9 6 9 . . Melee 2 | . 2 . . . . . . . . . . . . . . . . . . . Guns 24 | . 7 . 1 . 1 . . . . . . . . . . 5 6 4 . . Cannons 111 | . . 3 26 2 22 . 9 3 7 . 6 . . 4 22 3 . 4 . . AOE 16 | . . . 1 . . . 5 . 2 . 5 . . . 2 . . 1 . . Classes Destroyed 18 | . 5 3 1 . 3 . . 1 . . 2 . 1 . . 1 . . 1 . Builder 3 | . . 1 . . . . . . . . . . . . . . . 2 . . Hauler 13 | . 1 1 4 2 1 . 2 . . . . . . 1 1 . . . . . Recycler 2 | . . 1 . . . . . . . . . . . . 1 . . . . . Mechanic 1 | . . . 1 . . . . . . . . . . . . . . . . . Operator 8 | . 1 . 2 3 2 . . . . . . . . . . . . . . . Watcher 10 | . 2 1 2 2 . . 1 . . . . . . . 2 . . . . . Swarmer 30 | . 6 . 3 . 3 . . 3 2 . 3 . . . 5 1 4 . . . Grunt 54 | . 3 2 14 1 14 . 9 . 2 . 2 . . 3 1 3 . . . . Brawler 4 | . . . . . 1 . 1 . . . 1 . . . . 1 . . . . Duelist 3 | . . . . . . . . . . . . . . . . 3 . . . . Researcher 2 | . . . . . . . . . . . . . . . . . . . 2 . Sentry 23 | . . 2 11 1 2 . 2 . 2 . . . . 1 . 1 . 1 . . Specialist 3 | . . . . . . . . . . . 3 . . . . . . . . . Hunter 16 | . . . . . 2 . 1 . 1 . . . . 3 7 . . 2 . . Programmer 28 | . . . . . 2 . 1 . 3 . 1 . . 2 11 . 2 6 . . Heavy 1 | . . . . . . . . . . . 1 . . . . . . . . . Compactor 5 | . . . . . . . . . . . . . 5 . . . . . . . Samaritan 1 | . . . . . . . . 1 . . . . . . . . . . . . Best Kill Streak 9 | . 3 2 6 3 5 . 8 3 5 . 3 . 3 9 4 7 4 2 2 . Combat Bots Only 7 | . 3 2 6 1 5 . 7 3 5 . 3 . 3 5 4 7 4 2 . . Max Kills in Single Turn 3 | . 1 2 2 1 1 . 2 2 2 . 3 . 1 1 1 1 1 2 1 . Gunslinging . | . . . . . . . . . . . . . . . . . . . . . Exploded 3 | . . . 1 . . . 2 . 1 . 3 . . . 1 . . 1 . . Melee 1 | . 1 . . . . . . . . . . . . . . . . . . . Uniques/NPCs Destroyed . | . . . . . . . . . . . . . . . . . . . . . Combat | -11 -10 -9 -9 -8 -7 -7 -7 -7 -7 -6 -6 -5 -5 -5 -4 -4 -4 -3 -3 -3 -------- Run | Yrd Mat Mat Sto Mat Fac Was Fac Low Low Fac DSF Fac Was Fac Fac Upp Upp Res Tes Gar Hostile Shots Fired 1544 | . 51 36 81 8 185 2 93 14 75 . 55 . . 154 154 71 77 265 39 184 Missed 448 | . 11 8 22 2 57 1 32 5 25 . 18 . . 32 36 13 23 84 15 64 Damage Taken 18663 | . 382 406 780 89 1994 13 1111 136 768 . 953 . . 2828 2216 1310 1095 3374 341 867 Core 2755 | . 114 73 64 . 287 . 52 13 176 . 103 . . 277 145 104 29 634 133 551 Absorbed by Shields 1836 | . . . . . . 4 . . . . 40 . . 32 221 227 198 494 . 620 Reduced by Siege Mode 340 | . . . . . . . . . . . . . . 61 23 195 61 . . . Ignored by Resistances 202 | . . . . . . . . . . . . . . . . . . . . 202 Regen/Repaired (Parts) 924 | . . . 64 . 74 . . . . . . 179 83 18 506 . . . . . Core Remaining (%) 72 | 100 54 . 65 100 . . . . 24 . 87 . . 72 . . 75 . . . Volleys Fired 673 | . 24 25 58 17 86 . 35 12 18 . 31 . 19 30 132 63 22 85 15 1 Largest 2 | . 2 2 2 2 2 . 2 2 2 . 2 . 2 2 1 1 1 2 1 1 Hottest 225 | . 100 91 136 136 148 . 148 128 128 . 128 . 113 160 90 225 225 175 72 24 Shots Fired 983 | . 48 50 116 34 163 . 64 23 35 . 59 . 20 41 131 63 22 100 13 1 Gun 202 | . 48 . 5 . 19 . . . . . . . 1 . . 36 17 62 13 1 Cannon 713 | . . 50 111 34 144 . 57 20 28 . 54 . 1 22 127 27 . 38 . . Launcher 21 | . . . . . . . 7 . 5 . 5 . . . 4 . . . . . Special 47 | . . . . . . . . 3 2 . . . 18 19 . . 5 . . . Kinetic 194 | . . 25 34 . . . 33 10 11 . 24 . 1 . 18 . . 38 . . Thermal 638 | . 48 . 43 34 144 . 24 10 17 . 30 . 1 22 109 63 17 62 13 1 Explosive . | . . . . . . . . . . . . . . . . . . . . . Electromagnetic 104 | . . 25 39 . 19 . 7 . 5 . 5 . . . 4 . . . . . Robot Hit Streak 20 | . 9 15 20 5 11 . 11 4 10 . 13 . 8 20 7 20 16 8 11 . Robot Miss Streak 6 | . 4 3 3 2 5 . 6 2 3 . 3 . 4 2 6 6 3 4 . . Penetration Max 1 | . . . . . . . . . . . . . . . . . . 1 . . Secondary Targets 2 | . 2 . . . . . . . . . . . . . . . . . . . Max Gunslinging Chain 1 | . 1 . . . . . . . . . . . . . . . . . . . Capacitor 214 | . . . . . . . . . . . . . . . 109 63 17 25 . . Shots Hit Robots 642 | . 33 38 80 19 109 . 34 8 20 . 39 . 15 33 72 53 15 64 10 . Core Hits 292 | . 15 10 42 10 47 . 30 5 15 . 22 . . 9 40 16 6 21 4 . Critical Kills 4 | . 1 . 1 . . . . . . . . . . . 2 . . . . . Critical Parts Destroyed 2 | . . . . . . . . . . . . . . . 2 . . . . . Critical Strikes 24 | . 6 . 5 . . . 2 1 . . . . . . 4 . . 6 . . Burn 6 | . 5 . 1 . . . . . . . . . . . . . . . . . Meltdown 1 | . . . 1 . . . . . . . . . . . . . . . . . Destroy 4 | . . . . . . . . . . . . . . . 4 . . . . . Blast 12 | . . . 3 . . . 2 1 . . . . . . . . . 6 . . Smash 1 | . 1 . . . . . . . . . . . . . . . . . . . Melee Attacks 4 | . 4 . . . . . . . . . . . . . . . . . . . Impact 4 | . 4 . . . . . . . . . . . . . . . . . . . Slashing . | . . . . . . . . . . . . . . . . . . . . . Piercing . | . . . . . . . . . . . . . . . . . . . . . Sneak Attacks . | . . . . . . . . . . . . . . . . . . . . . Combat Hostiles . | . . . . . . . . . . . . . . . . . . . . . Follow-up Attacks . | . . . . . . . . . . . . . . . . . . . . . Damage Inflicted 18931 | . 530 753 1856 408 2488 . 1694 257 713 . 1450 . 44 442 3017 1785 575 2549 359 11 Guns 3961 | . 359 . 84 . 317 . . . . . . . 18 . . 893 575 1356 359 . Cannons 12469 | . . 753 1694 408 2119 . 928 257 516 . 987 . 26 442 2559 892 . 888 . . Explosions 2263 | . . . 78 . 52 . 766 . 197 . 463 . . . 402 . . 305 . . Melee 171 | . 171 . . . . . . . . . . . . . . . . . . . Ramming 67 | . . . . . . . . . . . . . . . 56 . . . . 11 Kinetic 3028 | . . 313 386 . . . 498 103 209 . 470 . 18 . 143 . . 888 . . Thermal 12798 | . 359 . 758 408 2171 . 853 154 344 . 701 . 26 442 2507 1785 575 1356 359 . Explosive 514 | . . . . . . . . . . . . . . . 209 . . 305 . . Electromagnetic 2353 | . . 440 712 . 317 . 343 . 160 . 279 . . . 102 . . . . . Impact 171 | . 171 . . . . . . . . . . . . . . . . . . . Slashing . | . . . . . . . . . . . . . . . . . . . . . Piercing . | . . . . . . . . . . . . . . . . . . . . . Highest Corruption 22 | . . 5 5 . 4 4 5 5 5 . 2 . . 6 8 . 5 19 19 22 Average Corruption 5 | . . 5 5 . 3 4 4 5 5 . 1 . . 5 4 . 3 10 19 19 Corruption Purged 10 | . . . . . 2 . . . . . . . . . 8 . . . . . Corruption Blocked . | . . . . . . . . . . . . . . . . . . . . . Effects 247 | . . 5 26 . 22 5 39 20 26 . 4 . . 3 41 . 12 33 6 5 Message Errors 68 | . . 3 7 . 8 1 8 6 10 . . . . . 14 . 4 5 1 1 Matter Fused 51 | . . 2 2 . 4 1 13 3 5 . 2 . . 2 8 . 4 5 . . Heat Flow Errors 24 | . . . 6 . 2 . 5 1 3 . 2 . . . 3 . . 2 . . Energy Discharges 35 | . . . 4 . 2 2 7 4 3 . . . . 1 6 . . 4 1 1 Parts Rejected 3 | . . . 1 . 1 . . . . . . . . . . . . 1 . . Parts Fused 4 | . . . . . . . 1 . . . . . . . . . . 1 1 1 Data Loss (minor) 31 | . . . 4 . 3 . 3 4 1 . . . . . 6 . 4 5 1 . Data Loss (major) 6 | . . . . . 1 . . . 1 . . . . . 2 . . 2 . . Misfires 4 | . . . . . . . 1 2 1 . . . . . . . . . . . Alerts 8 | . . . 2 . 1 1 1 . 2 . . . . . 1 . . . . . Misdirections 3 | . . . . . . . . . . . . . . . . . . 1 . 2 Weapon Failures 10 | . . . . . . . . . . . . . . . 1 . . 7 2 . Overload Shots 40 | . . . . . . . . . . . . . . . . 13 14 . 13 . Effects 1 | . . . . . . . . . . . . . . . . . 1 . . . Heat Surge 1 | . . . . . . . . . . . . . . . . . 1 . . . Overflow Damage 235 | . . . 17 . 66 . 51 2 . . 5 . . . 13 11 . 70 . . Projectiles 170 | . . . 17 . 66 . 19 2 . . . . . . 13 11 . 42 . . Explosions 65 | . . . . . . . 32 . . . 5 . . . . . . 28 . . Melee . | . . . . . . . . . . . . . . . . . . . . . Knockbacks 20 | . . . 2 . . . 3 . 1 . . . . . 1 . . 13 . . Impact . | . . . . . . . . . . . . . . . . . . . . . Kinetic 20 | . . . 2 . . . 3 . 1 . . . . . 1 . . 13 . . Secondary . | . . . . . . . . . . . . . . . . . . . . . Self-Inflicted Damage 619 | . . . 32 . . . 272 . 43 . 21 . . . 113 . . 135 . 3 Shots 18 | . . . 1 . . . 7 . 2 . 1 . . . 5 . . 2 . . Rammed 8 | . . . . . . . . . . . . . . . 2 . . . . 6 Targets Rammed 9 | . . . . . . . . . . . . . . . 3 . . . . 6 Kicked . | . . . . . . . . . . . . . . . . . . . . . Crushed 1 | . . . . . . . . . . . . . . . 1 . . . . . Highest Temperature 528 | . 288 371 243 234 528 1 477 198 205 . 166 . 44 260 197 211 437 406 12 47 Average Temperature 110 | . 93 117 66 70 121 1 135 85 75 . 24 . 25 122 98 127 156 174 9 20 Received Heat Transfer 2550 | . 90 141 249 63 471 7 378 . 138 . 45 . . 302 28 237 60 30 57 254 Effects 16 | . . 1 . . 5 . 3 . . . . . . 1 . . 1 5 . . Shutdowns 4 | . . . . . 1 . 1 . . . . . . . . . 1 1 . . Energy Bleed 2 | . . . . . . . . . . . . . . . . . . 2 . . Interference 4 | . . . . . 3 . . . . . . . . 1 . . . . . . Matter Decay 2 | . . . . . . . 1 . . . . . . . . . . 1 . . Short Circuit 1 | . . . . . . . 1 . . . . . . . . . . . . . Damage (minor) 2 | . . 1 . . . . . . . . . . . . . . . 1 . . Damage (core) 1 | . . . . . 1 . . . . . . . . . . . . . . . Siege Activations 8 | . . . . . . . . . . . . . . 2 2 1 3 . . . Total Turns 168 | . . . . . . . . . . . . . . 55 28 46 39 . . . Longest Duration 46 | . . . . . . . . . . . . . . 29 22 46 24 . . . Robots Corrupted 1 | . . 1 . . . . . . . . . . . . . . . . . . Combat Hostiles 1 | . . 1 . . . . . . . . . . . . . . . . . . Parts Fried 10 | . . 5 3 . . . 1 . . . 1 . . . . . . . . . Impact Corruptions . | . . . . . . . . . . . . . . . . . . . . . Robots Melted 4 | . 1 . 1 . 1 . . . . . . . . . . 1 . . . . Combat Hostiles 2 | . . . . . 1 . . . . . . . . . . 1 . . . . Parts Melted 47 | . 5 . 6 2 7 . . 1 . . . . . 4 5 4 1 6 6 . Heat Transferred 19158 | . 1443 . 1432 740 3571 . 1237 300 600 . 1250 . 50 800 2542 2191 611 1591 800 . Parts Sabotaged . | . . . . . . . . . . . . . . . . . . . . . Parts Stolen . | . . . . . . . . . . . . . . . . . . . . . Parts Stripped . | . . . . . . . . . . . . . . . . . . . . . Power Chain Reactions 8 | . . . 1 . 1 . 2 . 1 . 2 . . . 1 . . . . . Alert | -11 -10 -9 -9 -8 -7 -7 -7 -7 -7 -6 -6 -5 -5 -5 -4 -4 -4 -3 -3 -3 ------- Run | Yrd Mat Mat Sto Mat Fac Was Fac Low Low Fac DSF Fac Was Fac Fac Upp Upp Res Tes Gar Peak Influence 658 | . 153 173 493 466 462 170 304 . . 45 270 155 72 596 658 . . 253 175 196 Initial 287 | . . 24 18 195 211 140 119 . . 42 35 141 54 . 287 . . . 83 131 Average 198 | . 56 74 335 321 256 144 139 . . 43 142 146 31 287 318 . . 77 135 168 Maximum Alert Level 2 | . . . 2 2 2 . 1 . . . 1 . . 2 2 . . 1 . . Low Security (%) 53 | 100 100 100 19 7 31 100 70 . . 100 82 100 100 25 15 . . 77 100 100 Level 1 34 | . . . 26 77 54 . 29 . . . 17 . . 42 67 . . 22 . . Level 2 12 | . . . 53 15 14 . . . . . . . . 31 17 . . . . . Level 3 . | . . . . . . . . . . . . . . . . . . . . . Level 4 . | . . . . . . . . . . . . . . . . . . . . . Level 5 . | . . . . . . . . . . . . . . . . . . . . . High Security . | . . . . . . . . . . . . . . . . . . . . . Max Security . | . . . . . . . . . . . . . . . . . . . . . Sterilizations 1 | . . . . . . . . . . . 1 . . . . . . . . . Squads Dispatched 44 | . 1 1 3 4 8 . 5 . . . 1 . . 5 9 . . 4 3 . Investigation 13 | . . 1 . 1 4 . 3 . . . . . . 1 2 . . . 1 . Extermination 13 | . . . . . 2 . 1 . . . . . . 1 6 . . 3 . . Reinforcement 18 | . 1 . 3 3 2 . 1 . . . 1 . . 3 1 . . 1 2 . Assault . | . . . . . . . . . . . . . . . . . . . . . Garrison . | . . . . . . . . . . . . . . . . . . . . . Intercept . | . . . . . . . . . . . . . . . . . . . . . Searches Triggered . | . . . . . . . . . . . . . . . . . . . . . Construction Impeded 1 | . . . . . . . . . . . . . . 1 . . . . . . Haulers Reinforced 2 | . . . . . . . . . . . . . . 1 1 . . . . . Active Scanning Responses . | . . . . . . . . . . . . . . . . . . . . . Cargo Convoy Interrupts 1 | . . . . . 1 . . . . . . . . . . . . . . . Stealth | -11 -10 -9 -9 -8 -7 -7 -7 -7 -7 -6 -6 -5 -5 -5 -4 -4 -4 -3 -3 -3 --------- Run | Yrd Mat Mat Sto Mat Fac Was Fac Low Low Fac DSF Fac Was Fac Fac Upp Upp Res Tes Gar Distress Signals 9 | . 1 1 . 1 1 . . . . . . . . 2 . . . 2 1 . Communications Jammed 204 | . . . . . 1 . 1 . . . 9 . . 65 7 . . 121 . . Distress Signals 193 | . . . . . 1 . 1 . . . . . . 65 5 . . 121 . . Times Spotted 286 | . 14 10 31 13 36 4 16 4 12 . 11 . 5 19 32 10 7 44 11 7 Peak Tracking Total 16 | . 3 4 5 3 6 3 7 3 5 . 3 . 2 6 4 7 4 16 8 6 Tactical Retreats 12 | . . . 2 . 2 1 . . 1 . . . . 1 2 . . 3 . . Traps | -11 -10 -9 -9 -8 -7 -7 -7 -7 -7 -6 -6 -5 -5 -5 -4 -4 -4 -3 -3 -3 ------- Run | Yrd Mat Mat Sto Mat Fac Was Fac Low Low Fac DSF Fac Was Fac Fac Upp Upp Res Tes Gar Traps Triggered 11 | . . 1 2 . 4 . 2 . . . 1 1 . . . . . . . . Indirectly . | . . . . . . . . . . . . . . . . . . . . . Trap Hack Attempts . | . . . . . . . . . . . . . . . . . . . . . Triggered . | . . . . . . . . . . . . . . . . . . . . . Disarmed . | . . . . . . . . . . . . . . . . . . . . . Reprogrammed . | . . . . . . . . . . . . . . . . . . . . . Reused . | . . . . . . . . . . . . . . . . . . . . . Traps Extracted . | . . . . . . . . . . . . . . . . . . . . . Installed . | . . . . . . . . . . . . . . . . . . . . . Triggered 1 | . . . . . 1 . . . . . . . . . . . . . . . Machines | -11 -10 -9 -9 -8 -7 -7 -7 -7 -7 -6 -6 -5 -5 -5 -4 -4 -4 -3 -3 -3 ---------- Run | Yrd Mat Mat Sto Mat Fac Was Fac Low Low Fac DSF Fac Was Fac Fac Upp Upp Res Tes Gar Machines Disabled 29 | . . . . 1 2 . 6 1 . . 1 . . 2 9 . . 4 2 1 Max in Single Turn 4 | . . . . 1 2 . 4 1 . . 1 . . . 4 . . 1 1 1 Garrison Access 3 | . . . 1 . . . 2 . . . . . . . . . . . . . Garrison Relay 1 | . . . . . . . . . . . . . . . . . . . . 1 Machines Repaired . | . . . . . . . . . . . . . . . . . . . . . Machines Dismantled . | . . . . . . . . . . . . . . . . . . . . . Machines Sabotaged . | . . . . . . . . . . . . . . . . . . . . . Overloaded Fab Kills . | . . . . . . . . . . . . . . . . . . . . . Hacking | -11 -10 -9 -9 -8 -7 -7 -7 -7 -7 -6 -6 -5 -5 -5 -4 -4 -4 -3 -3 -3 --------- Run | Yrd Mat Mat Sto Mat Fac Was Fac Low Low Fac DSF Fac Was Fac Fac Upp Upp Res Tes Gar Machines Accessed 74 | . 8 1 10 3 15 . 12 1 2 3 . 1 . 4 9 . 1 2 2 . Terminals 37 | . 5 1 7 3 8 . 4 . . 2 . . . 1 3 . . 2 1 . Fabricators 8 | . . . . . 3 . 2 . . . . . . 1 2 . . . . . Repair Stations 10 | . 1 . 2 . 1 . 2 . . . . 1 . 1 2 . . . . . Recycling Units 4 | . 2 . . . . . . . . . . . . 1 1 . . . . . Scanalyzers 5 | . . . . . 2 . 2 . . . . . . . 1 . . . . . Garrison Access 6 | . . . 1 . 1 . 2 . . 1 . . . . . . . . 1 . Total Hacks 195 | . 23 4 17 7 45 . 34 1 9 11 . 2 . 10 23 . 1 4 4 . Successful 116 | . 12 1 13 1 26 . 21 1 9 7 . 2 . 5 12 . 1 4 1 . Failed 78 | . 11 3 4 6 19 . 13 . . 3 . . . 5 11 . . . 3 . Catastrophic 13 | . 1 . . 2 5 . 1 . . . . . . 1 2 . . . 1 . Database Lockouts 1 | . . . . . . . . . . 1 . . . . . . . . . . Manual 12 | . 1 . 4 1 5 . . 1 . . . . . . . . . . . . Terminals 90 | . 14 4 9 7 23 . 7 . . 10 . . . 2 7 . . 4 3 . Fabricators 29 | . . . . . 11 . 8 . . . . . . 3 7 . . . . . Repair Stations 24 | . 2 . 5 . 2 . 4 . . . . 2 . 4 5 . . . . . Recycling Units 9 | . 7 . . . . . . . . . . . . 1 1 . . . . . Scanalyzers 23 | . . . . . 8 . 12 . . . . . . . 3 . . . . . Garrison Access 9 | . . . 3 . 1 . 3 . . 1 . . . . . . . . 1 . Terminal Hacks 56 | . 6 1 9 1 12 . 2 1 9 7 . . . . 3 . 1 4 . . Record 19 | . . . . . 4 . . . 8 5 . . . . . . . 2 . . Prototype ID Bank 1 | . 1 . . . . . . . . . . . . . . . . . . . Open Door 7 | . . . 4 . . . . 1 1 . . . . . . . 1 . . . Open DSF 4 | . . . . . 2 . 1 . . 1 . . . . . . . . . . Branch Access Points 3 | . 1 . . 1 . . . . . . . . . . 1 . . . . . Emergency Access Points 3 | . 1 . . . 1 . . . . . . . . . 1 . . . . . Alert Level 5 | . . . 1 . 1 . 1 . . 1 . . . . . . . 1 . . Locate Traps 5 | . . . 2 . 1 . . . . . . . . . 1 . . 1 . . Dispatch Records 2 | . 1 . . . 1 . . . . . . . . . . . . . . . Maintenance Status 1 | . 1 . . . . . . . . . . . . . . . . . . . Transport Status 1 | . . . 1 . . . . . . . . . . . . . . . . . Investigation Status 1 | . . 1 . . . . . . . . . . . . . . . . . . Recall Investigation 1 | . . . . . 1 . . . . . . . . . . . . . . . Registered Components 1 | . 1 . . . . . . . . . . . . . . . . . . . Zone Layout 2 | . . . 1 . 1 . . . . . . . . . . . . . . . Fabricator Hacks 15 | . . . . . 4 . 4 . . . . . . 3 4 . . . . . Network Status 2 | . . . . . . . 1 . . . . . . . 1 . . . . . Load Schematic 7 | . . . . . 2 . 2 . . . . . . 1 2 . . . . . Build 6 | . . . . . 2 . 1 . . . . . . 2 1 . . . . . Repair Station Hacks 16 | . 2 . 3 . 2 . 3 . . . . 2 . 1 3 . . . . . Scan Component 10 | . 1 . 2 . 1 . 2 . . . . 1 . 1 2 . . . . . Repair 5 | . . . 1 . 1 . 1 . . . . 1 . . 1 . . . . . Refit 1 | . 1 . . . . . . . . . . . . . . . . . . . Recycling Unit Hacks 5 | . 4 . . . . . . . . . . . . 1 . . . . . . Retrieve Matter 2 | . 2 . . . . . . . . . . . . . . . . . . . Retrieve Components 3 | . 2 . . . . . . . . . . . . 1 . . . . . . Scanalyzer 20 | . . . . . 8 . 10 . . . . . . . 2 . . . . . Insert Component 8 | . . . . . 4 . 3 . . . . . . . 1 . . . . . Analyze 12 | . . . . . 4 . 7 . . . . . . . 1 . . . . . Garrison Access Hacks 4 | . . . 1 . . . 2 . . . . . . . . . . . 1 . Unlock Access 1 | . . . . . . . . . . . . . . . . . . . 1 . Seal Access 3 | . . . 1 . . . 2 . . . . . . . . . . . . . Unauthorized Hacks . | . . . . . . . . . . . . . . . . . . . . . Terminals . | . . . . . . . . . . . . . . . . . . . . . Fabricators . | . . . . . . . . . . . . . . . . . . . . . Repair Stations . | . . . . . . . . . . . . . . . . . . . . . Recycling Units . | . . . . . . . . . . . . . . . . . . . . . Scanalyzers . | . . . . . . . . . . . . . . . . . . . . . Garrison Access . | . . . . . . . . . . . . . . . . . . . . . Data Cores Recovered 1 | . . . . . 1 . . . . . . . . . . . . . . . Used 1 | . . . . . 1 . . . . . . . . . . . . . . . Hacking Detections 56 | . 5 1 4 3 13 . 10 . . 3 . 1 . 3 9 . . 2 2 . Full Trace Events 11 | . 1 . . 1 3 . 2 . . . . . . 1 2 . . . 1 . Feedback Events . | . . . . . . . . . . . . . . . . . . . . . Feedback Blocked . | . . . . . . . . . . . . . . . . . . . . . Robot Schematics Acquired 2 | . . . . . . . . . . . . . . . . . . . 2 . Robots Built . | . . . . . . . . . . . . . . . . . . . . . Authchips . | . . . . . . . . . . . . . . . . . . . . . Time . | . . . . . . . . . . . . . . . . . . . . . Total Robot Build Rating . | . . . . . . . . . . . . . . . . . . . . . Part Schematics Acquired 11 | . . . . . 4 . 2 . . . . . . . 1 . . . 4 . Parts Built 10 | . . . . . 3 . 2 . . . . . . 4 1 . . . . . Authchips . | . . . . . . . . . . . . . . . . . . . . . Time 561 | . . . . . 168 . 42 . . . . . . 234 117 . . . . . Total Part Build Rating 55 | . . . . . 12 . 8 . . . . . . 28 7 . . . . . Parts Repaired 4 | . . . 1 . 1 . . . . . . 1 . . 1 . . . . . Time 230 | . . . 32 . 61 . 50 . . . . 25 . . 62 . . . . . Parts Recycled . | . . . . . . . . . . . . . . . . . . . . . Recycled Matter . | . . . . . . . . . . . . . . . . . . . . . Retrieved Matter 256 | . 256 . . . . . . . . . . . . . . . . . . . Retrieved Components 20 | . 18 . . . . . . . . . . . . 2 . . . . . . Parts Scanalyzed 8 | . . . . . 4 . 3 . . . . . . . 1 . . . . . Part Schematics Acquired 7 | . . . . . 4 . 2 . . . . . . . 1 . . . . . Parts Damaged 4 | . . . . . 1 . 2 . . . . . . . 1 . . . . . Bothacking | -11 -10 -9 -9 -8 -7 -7 -7 -7 -7 -6 -6 -5 -5 -5 -4 -4 -4 -3 -3 -3 ------------ Run | Yrd Mat Mat Sto Mat Fac Was Fac Low Low Fac DSF Fac Was Fac Fac Upp Upp Res Tes Gar Used RIF Installer . | . . . . . . . . . . . . . . . . . . . . . Robots Hacked . | . . . . . . . . . . . . . . . . . . . . . Non-combat . | . . . . . . . . . . . . . . . . . . . . . Combat . | . . . . . . . . . . . . . . . . . . . . . Robot Hacks Applied . | . . . . . . . . . . . . . . . . . . . . . Relay Couplers Released 4 | . . . . . . . . . . . . . . . . . . . . 4 Machine Destruction 4 | . . . . . . . . . . . . . . . . . . . . 4 Fabnet Peak Effective % . | . . . . . . . . . . . . . . . . . . . . . Robots Rewired 2 | . . . . . . . . . . . . . . . . 2 . . . . Allies Hacked . | . . . . . . . . . . . . . . . . . . . . . Hacks Repelled . | . . . . . . . . . . . . . . . . . . . . . Allies | -11 -10 -9 -9 -8 -7 -7 -7 -7 -7 -6 -6 -5 -5 -5 -4 -4 -4 -3 -3 -3 -------- Run | Yrd Mat Mat Sto Mat Fac Was Fac Low Low Fac DSF Fac Was Fac Fac Upp Upp Res Tes Gar Total Allies 31 | . . . 10 . . . . . 1 . . . 18 . . 2 . . . . Largest Group 18 | . . . 10 10 1 . . . 1 . . . 18 18 . 2 . . . . Highest-Rated Group 656 | . . . 88 88 8 . . . 135 . . . 656 656 . 96 . . . . Highest-Rated Ally 135 | . . . 16 16 8 . . . 135 . . . 50 50 . 49 . . . . Total Orders 1 | . . . 1 . . . . . . . . . . . . . . . . . EXPLORE 1 | . . . 1 . . . . . . . . . . . . . . . . . Ally Attacks 233 | . . . . 93 4 . . . 2 . . . 14 105 . 15 . . . . Total Damage 5023 | . . . . 834 46 . . . 77 . . . 489 3216 . 361 . . . . Kills 34 | . . . . 9 . . . . 1 . . . 1 22 . 1 . . . . Allies Corrupted . | . . . . . . . . . . . . . . . . . . . . . Allies Melted . | . . . . . . . . . . . . . . . . . . . . . Intel | -11 -10 -9 -9 -8 -7 -7 -7 -7 -7 -6 -6 -5 -5 -5 -4 -4 -4 -3 -3 -3 ------- Run | Yrd Mat Mat Sto Mat Fac Was Fac Low Low Fac DSF Fac Was Fac Fac Upp Upp Res Tes Gar Robot Analysis Total . | . . . . . . . . . . . . . . . . . . . . . Derelict Logs Recovered 3 | . . . . . . . . . 2 . . . . . . . 1 . . . Drone Launches 16 | . . . 16 . . . . . . . . . . . . . . . . . Drone Recoveries 2 | . . . 2 . . . . . . . . . . . . . . . . . Exploration | -11 -10 -9 -9 -8 -7 -7 -7 -7 -7 -6 -6 -5 -5 -5 -4 -4 -4 -3 -3 -3 ------------- Run | Yrd Mat Mat Sto Mat Fac Was Fac Low Low Fac DSF Fac Was Fac Fac Upp Upp Res Tes Gar Turns Passed 17598 | 56 1025 620 1118 361 2069 148 1846 753 811 269 342 119 758 660 2395 1763 1405 862 143 75 Spaces Moved 9187 | 42 538 298 476 217 1407 90 863 430 453 164 146 63 421 296 1049 715 825 405 217 72 Core 32 | 12 3 . . . . . . . . . . . . . . . . . . 17 Treads 7520 | . 527 298 476 123 346 90 863 430 453 164 146 63 421 296 1049 715 825 235 . . Legs 38 | 30 8 . . . . . . . . . . . . . . . . . . . Wheels 1155 | . . . . 94 1061 . . . . . . . . . . . . . . . Hover 196 | . . . . . . . . . . . . . . . . . . 67 74 55 Flight 246 | . . . . . . . . . . . . . . . . . . 103 143 . Fastest Speed 27 | 50 120 160 160 90 90 160 160 160 160 160 160 160 160 158 156 160 160 27 30 50 Average Speed 150 | 100 159 160 160 129 107 160 161 160 160 160 161 172 162 160 186 160 160 153 42 62 Slowest Speed 560 | 120 200 160 160 160 240 160 240 160 160 160 240 240 240 165 238 160 161 560 70 66 Overloaded Moves . | . . . . . . . . . . . . . . . . . . . . . Propulsion Burnouts . | . . . . . . . . . . . . . . . . . . . . . Robots Hopped 3 | . . . . . . . . . . . . . . . . . . 2 1 . Cave-ins Triggered 1 | . . . . . . . . . . . . . . . . . 1 . . . Exploration Rate (%) 43 | 4 84 25 93 32 33 73 20 60 48 5 93 2 97 10 18 84 78 9 29 13 Regions Visited 20 Branch Regions 6 Pre-discovered Areas 3 | . . . . . . . . . 1 . . . . . . 1 1 . . . Known Exits Taken 3 | . . . . . . . . . . 1 . . . . 1 . . . 1 . Unknown Exits Taken 12 | 1 1 1 1 1 . . 1 1 1 . . . . 1 . 1 1 1 . . Scrap Searched 9 | . . . . . . . . 2 3 . . . . . . 3 1 . . . Spaces Dug 11 | . . . . . . . . . 3 . . . . . 5 . . 2 1 . Terrain Destroyed 282 | . . . 2 . . . 32 5 5 . 5 . . . 116 2 4 110 1 . Melee . | . . . . . . . . . . . . . . . . . . . . . Projectile 64 | . . . . . . . 6 5 3 . . . . . 30 2 4 13 1 . AOE 218 | . . . 2 . . . 26 . 2 . 5 . . . 86 . . 97 . . Terrain Rammed . | . . . . . . . . . . . . . . . . . . . . . Walls Destroyed . | . . . . . . . . . . . . . . . . . . . . . Machines Disabled . | . . . . . . . . . . . . . . . . . . . . . Actions | -11 -10 -9 -9 -8 -7 -7 -7 -7 -7 -6 -6 -5 -5 -5 -4 -4 -4 -3 -3 -3 --------- Run | Yrd Mat Mat Sto Mat Fac Was Fac Low Low Fac DSF Fac Was Fac Fac Upp Upp Res Tes Gar Total 12150 | 56 655 392 719 264 1800 94 1246 474 503 172 205 73 470 438 1462 1321 885 567 252 102 Wait 1660 | . 36 51 128 10 243 . 311 9 20 . 4 6 9 81 191 501 24 16 5 15 Move 9164 | 41 537 297 475 216 1407 89 862 429 452 163 145 63 420 295 1048 714 824 400 215 72 Hop 3 | . . . . . . . . . . . . . . . . . . 2 1 . Pick Up 181 | 10 25 6 15 4 15 . 14 3 3 4 8 . 9 8 21 6 3 24 3 . Fast Attach 56 | . 2 . 9 6 13 1 . . . . 3 1 . 3 12 2 . 1 3 . Attach 126 | 5 6 5 8 1 4 . 4 5 3 3 4 1 4 7 14 5 7 31 5 4 Detach 28 | . 1 . . 1 . . 1 4 3 . . . . 2 3 2 1 4 3 3 Swap 64 | . 4 3 2 . 7 1 14 . 4 . 4 2 1 2 15 4 1 . . . Drop 138 | . 16 5 15 9 25 1 5 2 . 2 5 . 8 10 23 3 3 4 2 . Fire 673 | . 24 25 58 17 86 . 35 12 18 . 31 . 19 30 132 63 22 85 15 1 Melee 4 | . 4 . . . . . . . . . . . . . . . . . . . Ram 7 | . . . . . . . . . . . . . . . . . . . . 7 Kick . | . . . . . . . . . . . . . . . . . . . . . Crush 3 | . . . . . . . . . . . . . . . 3 . . . . . Escape Stasis . | . . . . . . . . . . . . . . . . . . . . . Rewire 36 | . . . 2 . . 2 . 10 . . 1 . . . . 21 . . . . Trap . | . . . . . . . . . . . . . . . . . . . . . Miscellaneous 7 | . . . 7 . . . . . . . . . . . . . . . . . Route ------- -11/Scrapyard -10/Materials (discovered 3 exits: *Mat x2 / *Min) -9/Materials -9/Storage -8/Materials -7/Factory (discovered 2 exits: *Fac / *Low) -7/Waste -7/Factory (discovered 2 exits: *Low x2) -7/Lower Caves -7/Lower Caves (discovered 2 exits: *Fac x2) -6/Factory -6/DSF -5/Factory -5/Waste -5/Factory -4/Factory (discovered 5 exits: *Res / *Upp x2 / Ext x2) -4/Upper Caves -4/Upper Caves -3/Research (discovered 2 exits: Res / *Tes) -3/Testing -3/Garrison History --------- Turn | Location | Event 6 | -11/Scrapyard | Discovered new exit (range 14) 57 | -11/Scrapyard | Entered Materials 209 | -10/Materials | Discovered new exit (range 11) 301 | -10/Materials | Build established: Mutant 502 | -10/Materials | Discovered new exit (range 12) 749 | -10/Materials | Discovered new exit (range 4) 919 | -10/Materials | Identified exit to Mines 1082 | -10/Materials | Entered another Materials area 1082 | -9/Materials | Evolved 2 slots: Propulsion x2 1347 | -9/Materials | Discovered new exit (range 15) 1702 | -9/Materials | Entered Storage 1852 | -9/Storage | Repaired Lgt. EM Pulse Cannon 2377 | -9/Storage | Discovered new exit (range 26) 2508 | -9/Storage | Lost 5 allies 2718 | -9/Storage | Assisted by bots powering up and referring to "LRC-V3" 2820 | -9/Storage | Entered Materials 2820 | -8/Materials | Accompanied by 10 allies 2820 | -8/Materials | Evolved 2 slots: Propulsion x1, Utility x1 2918 | -8/Materials | Lost 5 allies 3129 | -8/Materials | Discovered new exit (range 16) 3181 | -8/Materials | Entered Factory 3181 | -7/Factory | Accompanied by 1 ally 3181 | -7/Factory | Evolved 2 slots: Utility x2 3489 | -7/Factory | Discovered new exit (range 15) 3846 | -7/Factory | Discovered new exit (range 5) 4560 | -7/Factory | Fabricated Hrd. Heavy Armor Plating (x1) 5013 | -7/Factory | Repaired Broken Med. Treads 5013 | -7/Factory | Cargo convoy interrupted 5087 | -7/Factory | Fabricated Med. Treads (x2) 5250 | -7/Factory | Sucked down chute 5250 | -7/Factory | Entered Waste 5250 | -7/Waste | The area was eerily silent 5350 | -7/Waste | A Compactor rumbled back to life 5350 | -7/Waste | Spotted C-40 Crusher 5384 | -7/Waste | Discovered new exit (range 10) 5398 | -7/Waste | Entered Factory 5532 | -7/Factory | Discovered new exit (range 5) 5911 | -7/Factory | Fabricated Med. Treads (x2) 6009 | -7/Factory | Discovered new exit (range 9) 6063 | -7/Factory | Identified exit to DSF 6721 | -7/Factory | Destroyed 7 combat bots 7244 | -7/Factory | Entered Lower Caves 7284 | -7/Lower Caves | Core integrity fell below 50% 7494 | -7/Lower Caves | Discovered new exit (range 13) 7827 | -7/Lower Caves | Acquired the password to a Derelict Tinkerer's latest research 7839 | -7/Lower Caves | Found Prototype Special Weapon 7846 | -7/Lower Caves | Identified Molecular Deconstructor 7997 | -7/Lower Caves | Entered another Lower Caves area 8120 | -7/Lower Caves | Attracted the attention of an 0b10 checkpoint 8145 | -7/Lower Caves | Learned Factory terminal intel 8250 | -7/Lower Caves | Learned location of Extension (-4) 8485 | -7/Lower Caves | Learned location of 1 exit from Research 8485 | -7/Lower Caves | Learned Factory trap positions 8485 | -7/Lower Caves | Learned Factory garrison access intel 8737 | -7/Lower Caves | AD-0RF showed up to help 8739 | -7/Lower Caves | AD-0RF revealed a hidden path 8768 | -7/Lower Caves | Discovered new exit (range 14) 8808 | -7/Lower Caves | Entered Factory 8808 | -6/Factory | Evolved 2 slots: Utility x2 8809 | -6/Factory | Loaded intel: 98 trap records 8810 | -6/Factory | Loaded intel: 26 terminal locations 8811 | -6/Factory | Loaded intel: 4 garrison access locations 8903 | -6/Factory | Central database locked down 9077 | -6/Factory | Identified exit to DSF 9077 | -6/Factory | Entered DSF 9122 | -6/DSF | Additional patrols routed to DSF 9202 | -6/DSF | Lost 5 parts (1p2n2u) 9349 | -6/DSF | Sterilization system engaged 9369 | -6/DSF | Ambient heat levels rising (+10) 9384 | -6/DSF | Ambient heat levels rising (+10) 9393 | -6/DSF | Discovered new exit (range 15) 9399 | -6/DSF | Ambient heat levels rising (+10) 9414 | -6/DSF | Ambient heat levels rising (+10) 9419 | -6/DSF | Entered Factory 9419 | -5/Factory | Evolved 2 slots: Power x1, Utility x1 9518 | -5/Factory | Repaired Imp. Medium Treads 9538 | -5/Factory | Sucked down chute 9538 | -5/Factory | Entered Waste 9554 | -5/Waste | Spotted C-40 Crusher 9571 | -5/Waste | Destroyed C-40 Crusher 9588 | -5/Waste | Spotted C-40 Crusher 9594 | -5/Waste | Spotted C-40 Crusher 9595 | -5/Waste | Spotted C-40 Crusher 9602 | -5/Waste | Destroyed C-40 Crusher 9622 | -5/Waste | Destroyed C-40 Crusher 9636 | -5/Waste | Destroyed C-40 Crusher 9667 | -5/Waste | Spotted C-40 Crusher 9696 | -5/Waste | Destroyed C-40 Crusher 9779 | -5/Waste | Warlord forces began an assault 9786 | -5/Waste | Spotted C-40 Crusher 9789 | -5/Waste | Allies destroyed C-40 Crusher 10098 | -5/Waste | Discovered new exit (range 15) 10165 | -5/Waste | Found Adv. Powered Armor 10247 | -5/Waste | Found Broken Adv. Powered Armor 10296 | -5/Waste | Entered Factory 10296 | -5/Factory | Accompanied by 18 allies 10429 | -5/Factory | Fabricated Adv. Medium Treads (x2) 10546 | -5/Factory | Fabricated Antimatter Reactor (x2) 10666 | -5/Factory | Spotted B-75 Beast 10676 | -5/Factory | Allies destroyed B-75 Beast 10705 | -5/Factory | Lost 10 allies 10845 | -5/Factory | Lost 7 allies 10913 | -5/Factory | Lost 4 parts (4u) 10930 | -5/Factory | Discovered new exit (range 15) 10956 | -5/Factory | Entered another Factory area 10956 | -4/Factory | Evolved 2 slots: Propulsion x1, Utility x1 11016 | -4/Factory | Discovered new exit (range 11) 11082 | -4/Factory | Found Quantum Capacitor 11245 | -4/Factory | Spotted B-86 Titan 11259 | -4/Factory | Build established: Scavenger-Mutant 11474 | -4/Factory | Discovered new exit (range 4) 12543 | -4/Factory | Repaired Imp. Heavy Treads 12597 | -4/Factory | Found Prototype Device 12597 | -4/Factory | Identified Exp. ECM Suite 12653 | -4/Factory | Spotted B-86 Titan 12898 | -4/Factory | Identified exit to Upper Caves 12898 | -4/Factory | Identified exit to Extension 13046 | -4/Factory | Lost 3 parts (2n1u) 13099 | -4/Factory | Fabricated Imp. Heavy Treads (x1) 13351 | -4/Factory | Entered Upper Caves 13352 | -4/Upper Caves | Encountered a Warlord checkpoint 13384 | -4/Upper Caves | Build established: Mutant 13416 | -4/Upper Caves | Met a Warlord Commander 13417 | -4/Upper Caves | Learned location of Warlord (-4) 13418 | -4/Upper Caves | Warlord Commander delivered Encrypted Comm Array 13423 | -4/Upper Caves | Found Encrypted Comm Array 13756 | -4/Upper Caves | Build established: Scavenger-Mutant 13793 | -4/Upper Caves | Attracted the attention of an 0b10 outpost 13855 | -4/Upper Caves | Lost 3 parts (1p1u1w) 13866 | -4/Upper Caves | Destroyed 7 combat bots 13952 | -4/Upper Caves | Attracted the attention of an 0b10 checkpoint 14220 | -4/Upper Caves | Discovered new exit (range 8) 15114 | -4/Upper Caves | Entered another Upper Caves area 15246 | -4/Upper Caves | Learned location of Quarantine (-2) 15415 | -4/Upper Caves | Build established: Mutant 15461 | -4/Upper Caves | Discovered new exit (range 14) 15693 | -4/Upper Caves | Encountered a Warlord checkpoint 15983 | -4/Upper Caves | Spotted B-86 Titan 16059 | -4/Upper Caves | Crushed by falling debris 16105 | -4/Upper Caves | Lost 6 parts (3n2u1w) 16519 | -4/Upper Caves | Entered Research 16519 | -3/Research | Evolved 2 slots: Propulsion x1, Utility x1 16520 | -3/Research | Identified exit to Research 16847 | -3/Research | Lost 3 parts (2n1u) 17087 | -3/Research | Lost 5 parts (1p2n2u) 17120 | -3/Research | System corruption reached 10% 17176 | -3/Research | Lost 4 parts (2u2w) 17368 | -3/Research | Discovered new exit (range 16) 17377 | -3/Research | Lost 16 parts (2p6n6u2w) 17381 | -3/Research | Entered Testing 17399 | -3/Testing | Found Prototype Device 17399 | -3/Testing | Identified Exp. Hardlight Generator 17435 | -3/Testing | Scanned by Researcher 17470 | -3/Testing | Found Prototype Hackware 17471 | -3/Testing | Identified System Mapper 17482 | -3/Testing | Core integrity fell below 50% 17524 | -3/Testing | Identified exit to Garrison 17524 | -3/Testing | Entered Garrison 17527 | -3/Garrison | Lost 4 parts (2n2u) 17540 | -3/Garrison | Triggered checkpoint 17550 | -3/Garrison | Garrison Relay disabled 17585 | -3/Garrison | Core integrity fell below 20% 17599 | -3/Garrison | Destroyed by G-73 Enforcer with Phase Gun Last Messages --------------- 17584_ Penetrated by Slug. 17584_ Slug penetrates H-77 Assassin. 17584_ Penetrated by Slug. 17584_ Slug penetrates H-77 Assassin. 17584_ Slammed into H-77 Assassin. 17586_ Exp. Hardlight Generator destroyed. 17586_ Penetrated by Slug. 17586_ Slug penetrates Wall. 17586_ Slammed into H-77 Assassin. 17587_ Adv. Thermal Shield destroyed. 17587_ Penetrated by Slug. 17587_ Slug penetrates H-77 Assassin. 17587_ Slammed into H-77 Assassin. 17587_ System Mapper destroyed. 17587_ System corrupted by crushing effect (+3). 17588_ Slammed into H-77 Assassin. 17589_ Mic. Antimatter Reactor destroyed. 17589_ Penetrated by Slug. 17593_ Slug penetrates Wall. 17598_ Graphene Brace destroyed. Map ----- +----------------------------------------------------+ | ?????????????????????????????????????????????????? | | ?????????????????????????????????????????????????? | | ?????????????????????????????????????????????????? | | ?????????????????????????????????????????????????? | | ?????????????????????????????????????????????????? | | ?????????????????????????????????????????????????? | | ?????????????????????????????????????????????????? | | ?????????????????????????????????????????????????? | | ?????????????????????????????????????????????????? | | ?????????????????????????????????????????????????? | | ?????????????????????????????????????????????????? | | ?????????????????????????????????????????????????? | | ?????????????????????????????????????????????????? | | ?????????????????????????????????????????????????? | | ?????????????????????????????????????????????????? | | ?????????????????????????????????????????????????? | | ?????????????????????????????????????????????????? | | ########?????????????????????????????????????????? | | #?????????????????????????????????????????? | | #?????????????????????????????????????????? | | ########??????????????????????????????????? | | ##"" ""#??????????????????????????????????? | | *! =###!!!##############??????????????????????? | | [ ! #??????????????????????? | | [ ############ ### #??????????????????????? | | ! * #??????????# #?#@#??????????????????????? | | * #??????????##+##?# #??????????????????????? | | [ #???????????# #??#g#??????????????????????? | | ########???????????# #??# #??????????????????????? | | ???????????????????# #??#g#??????????????????????? | | ???????????????????# #### ###########????????????? | | ???????????????????# # g #?????????? | | ???????????????????### #?????????? | | ?????????????????????# ##############???????????? | | ?????????????????????# #????????????????????????? | | ?????????????????????# #????????????????????????? | | ?????????????????????# #????????????????????????? | | ?????????????????????# #????????????????????????? | | ?????????????????????# #????????????????????????? | | ?????????????????????# #????????????????????????? | | ???????????????????### #????????????????????????? | | ???????????????????# #????????????????????????? | | ???????????????????# #????????????????????????? | | ???????????????????# #????????????????????????? | | ???????????????????######????????????????????????? | | ?????????????????????????????????????????????????? | | ?????????????????????????????????????????????????? | | ?????????????????????????????????????????????????? | | ?????????????????????????????????????????????????? | | ?????????????????????????????????????????????????? | +----------------------------------------------------+ Best States ------------- Heat Dissipation 65 Coolant Potential 200 Energy Generation 44 Energy Capacity 1135 Matter Stores 550 Matter Capacity 550 Sight Range 16 Terrain Scan Density 10 ECM Strength 3 Jamming Range 12 Power Amplification 30 Armor Coverage 1250 Resistance: TH 30 Point Defense Rating 160 Weapon Cycling 15 Phase Shifting 10 Evasion (%) 64 Targeting Accuracy 24 Recoil Reduction 11 Particle Charging 15 Offensive Hacking 20 Item Schematics ----------------- Med. Treads | -7/Factory | Scanalyzed Hrd. Heavy Armor Plating | -7/Factory | Scanalyzed Hardlight Generator | -7/Factory | Scanalyzed Huge Storage Unit | -7/Factory | Scanalyzed Antimatter Reactor | -7/Factory | Scanalyzed Weapon Cycler | -7/Factory | Scanalyzed Imp. Heavy Treads | -4/Factory | Scanalyzed Adv. EM Disruption Field | -3/Testing | Archive Exp. Targeting Computer | -3/Testing | Archive Cld. Plasma Rifle | -3/Testing | Archive Hvy. Gatling Laser | -3/Testing | Archive Robot Schematics ------------------ R-06 Scavenger | -3/Testing | Archive T-07 Excavator | -3/Testing | Archive Fabricated ------------ Hrd. Heavy Armor Plating | x1 | -7/Factory Med. Treads | x2 | -7/Factory Med. Treads | x2 | -7/Factory Adv. Medium Treads | x2 | -5/Factory | Preloaded Antimatter Reactor | x2 | -5/Factory Imp. Heavy Treads | x1 | -4/Factory Alien Tech Used ----------------- None Achievements -------------- Deconstruction Production Line Challenges ------------ None Game ------ Seed DroneImprovedLoader Manual? 0 Play Time 04:39:13 Cumulative 52.1 hours Start 2024.04.16 @ 16:06:25 End 2024.04.16 @ 21:25:38 Sessions 1 Manual Loads 0 Difficulty Rogue Special Mode None Game No. 19 Rogue 19 Adventurer 0 Explorer 0 Win Type - Total 0 Types 0/0/0/0/0/0/0/0/0 Lore% 30 Gallery% 46 Achievement% 42 Wizard Run 0 Options --------- Layout 0 ASCII 0 Keyboard 0 Movement Mouse Keybinds 0 Fullscreen 1 Font 18/SmallcapsGlow Map View 76x50 Zoom Use 0% Tactical HUD 1 Map Filters NONE Filters NONE Steam 1 RUN: 29bedff3-e2ef-455f-ae42-c011785b91df